[Event "German Championship Women 2022"]
[Site "Magdeburg"]
[Date "2022.08.18"]
[Round "6.2"]
[White "Birkholz, Olga"]
[Black "Muetsch, Annmarie"]
[Result "0-1"]
[ECO "A41"]
[WhiteElo "2002"]
[BlackElo "2249"]
[Annotator "TA"]
[PlyCount "144"]
[EventDate "2022.08.14"]
[EventType "swiss"]
[EventCountry "GER"]
[SourceTitle "playchess.com"]
[Source "ChessBase"]
[SourceQuality "1"]
[TimeControl "40/5400+30:1800+30"]

{[%evp 9,144,21,50,0,0,-19,-13,-27,-17,-31,-10,-34,-27,-27,8,24,25,-29,-31,-25,-14,-18,0,0,11,0,32,43,54,42,66,70,63,62,59,0,0,0,0,0,0,0,0,0,0,-13,0,-35,-23,-23,-6,-68,-62,-86,-104,-117,-80,-173,-180,-182,-139,-150,-53,-37,-22,-43,-7,-8,-2,-99,-46,-41,-18,-16,-16,-32,-23,-40,-33,-27,-24,-52,-44,-131,-133,-128,-125,-172,-170,-163,-172,-178,-172,-175,-149,-145,-97,-155,-153,-152,-163,-175,-177,-187,-182,-328,-328,-327,-327,-321,-325,-318,-305,-318,-197,-197,-186,-277,-275,-268,-267,-374,-374,-367,-367,-815,-815,-791,-674,-4137,-4137,-3239,-2712,-29966,-29964,-12814,-5081]} 1. d4 {[%emt 0:03:46]} d6 {[%emt 0:00:31]} 2. Nf3 {[%emt 0:00:38]} Nd7 {[%emt 0:00:44]} 3. Bf4 {[%emt 0:01:16]} g6 {[%emt 0:00:25]} 4. Qd2 {[%emt 0:01:20]} Bg7 {[%emt 0:00:23]} 5. Nc3 {[%emt 0:02:16]} c5 {[%emt 0:15:25]} 6. e3 {[%emt 0:04:34] A41: 1 d4 d6: Tartakower System and Modern Defence.} (6. e4 $14) 6... Ngf6 $11 {[%emt 0:02:45]} 7. h4 {[%emt 0:02:29]} a6 {[%emt 0:03:09]} 8. a4 {[%emt 0:06:13] Inhibits b5. The position is equal.} b6 {[%emt 0:00:16]} 9. Bc4 {[%emt 0:04:53][%cal Oh4h5] [#]} h6 $146 {[%emt 0:05:26]} ({Predecessor:} 9... O-O 10. Ng5 Bb7 11. h5 Nxh5 12. Qd3 Ndf6 13. d5 b5 14. Ba2 c4 15. Qd2 b4 {1-0 (40) Barva,A (2225)-Szuk,B (2370) Paks 1994}) 10. Rd1 {[%emt 0:10:43][%cal Of3e5]} Bb7 {[%emt 0:18:51]} 11. d5 {[%emt 0:03:09]} b5 {[%emt 0:00:56]} 12. axb5 {[%emt 0:01:39]} Nb6 {[%emt 0:00:06]} 13. b3 {[%emt 0:02:42]} (13. Be2 $142) 13... Nxc4 {[%emt 0:00:45]} 14. bxc4 {[%emt 0:00:01]} axb5 {[%emt 0:03:22]} 15. Nxb5 {[%emt 0:09:05]} Ra4 {[%emt 0:03:57]} 16. Qd3 {[%emt 0:02:50]} Bc8 {[%emt 0:11:49]} 17. e4 {[%emt 0:02:35] Prevents Bf5.} Bg4 {[%emt 0:01:47]} 18. Rb1 {[%emt 0:03:33]} O-O {[%emt 0:04:13]} 19. Nd2 {[%emt 0:11:23]} Nh5 {[%emt 0:00:25]} 20. Bh2 {[%emt 0:04:05]} Bd7 {[%emt 0:02:56]} 21. O-O $1 {[%emt 0:00:29]} f5 {[%emt 0:03:17][%cal Bf7f5,Bf5f4][%mdl 32]} 22. Rfe1 {[%emt 0:10:41]} (22. exf5 $14 Bxf5 23. Ne4) 22... f4 $1 {[%emt 0:02:39]} 23. Nf3 {[%emt 0:00:31] Against g5} Bg4 {[%emt 0:08:14]} 24. e5 {[%emt 0:02:58]} Bf5 {[%emt 0:00:13]} 25. Qe2 {[%emt 0:00:08]} Ra2 {[%emt 0:00:47]} 26. Rbc1 {[%emt 0:00:56]} Qd7 {[%emt 0:00:46]} 27. exd6 {[%emt 0:04:34]} exd6 {[%emt 0:00:05]} 28. Qe7 {[%emt 0:00:49]} (28. Qd2 $5 {[%cal Rh2f4]}) 28... Qxe7 {[%emt 0:00:12]} 29. Rxe7 {[%emt 0:00:01]} Rd8 {[%emt 0:02:25]} (29... Bf6 $5 {[%cal Rf6e7]} 30. Rb7 Ra6 $11) 30. Ne1 {[%emt 0:00:26]} (30. Ra7 $11 Rxa7 31. Nxa7) 30... Bf6 {[%emt 0:00:50] This bishop pair is nice.} 31. Rb7 {[%emt 0:02:11]} Bxh4 {[%emt 0:01:19]} 32. Nc3 {[%emt 0:00:36]} Ra3 {[%emt 0:00:28]} 33. Ne2 {[%emt 0:00:05]} (33. Nb5 $17 Ra4 34. Nf3) 33... Bg5 $1 $19 {[%emt 0:00:29]} 34. Rcb1 {[%emt 0:00:37][%cal Oe1d3]} Re8 {[%emt 0:03:25]} 35. Kf1 {[%emt 0:01:07]} Ra2 {[%emt 0:00:50]} (35... Ra4 $1 $17 36. Nc3 Rxc4) 36. Rb8 {[%emt 0:00:59]} Ra8 {[%emt 0:00:12]} 37. R8b6 {[%emt 0:00:11]} Rad8 {[%emt 0:00:28] White should prevent ...Re4.} 38. f3 {[%emt 0:00:12] Inhibits Re4.} ({Much worse is} 38. Nd3 Re4 39. Rb8 Rxb8 40. Rxb8+ Kf7 41. Rb7+ Ke8 $17) 38... Re3 {[%emt 0:02:02] Threatens to win with ...Rde8.} 39. Bg1 {[%emt 0:00:18] [#]} (39. Rb8 $11 {keeps the balance.} Ree8 40. Rxd8 Rxd8 41. Nd3) 39... Re7 {[%emt 0:01:36] Black is much more active.} (39... Ra3 $1 $17 {Strongly threatening ...Ra4.} 40. Bh2 Ra4) 40. Rb8 {[%emt 0:00:11]} Rde8 {[%emt 0:01:05]} 41. Rxe8+ {[%emt 0:31:50]} Rxe8 {[%emt 0:30:04]} 42. Bf2 {[%emt 0:00:39] Prevents Ng3+.} Ra8 {[%emt 0:00:00]} 43. Rb6 {[%emt 0:00:00]} Be7 {[%emt 0:00:00]} 44. Nc3 {[%emt 0:00:00]} Nf6 {[%emt 0:00:00]} 45. Rb7 {[%emt 0:00:00]} Kf8 {[%emt 0:00:00]} 46. Ke2 {[%emt 0:00:00] [#]} (46. Nd3 $15) 46... Bc8 $1 $17 {[%emt 0:00:00]} 47. Rb3 {[%emt 0:00:00]} Ba6 {[%emt 0:00:00]} 48. Kd3 {[%emt 0:00:00]} (48. Nb5 $17 {might work better.}) 48... Nd7 $19 {[%emt 0:00:00][%cal Oa6c4]} 49. Nb5 {[%emt 0:00:00]} Ne5+ {[%emt 0:00:00]} 50. Ke4 {[%emt 0:00:00]} Nxc4 {[%emt 0:00:00]} 51. Kxf4 {[%emt 0:00:00]} Bg5+ {[%emt 0:00:00]} 52. Kg3 {[%emt 0:00:00]} Nd2 {[%emt 0:01:20]} ({Black should try} 52... Bc8 53. Nc7 Ra7) 53. Nc7 {[%emt 0:00:00]} (53. Ra3 $142 Nf1+ 54. Kh3 Bc8+ 55. g4 Rxa3 56. Nxa3) 53... Nxb3 $17 {[%emt 0:01:52]} 54. Nxa8 {[%emt 0:00:00]} Nd2 {[%emt 0:00:37] White must now prevent ...Bc8.} 55. Nb6 {[%emt 0:00:00] Prevents Bc8.} Bd8 {[%emt 0:00:52]} 56. Na4 {[%emt 0:00:00]} Bb7 {[%emt 0:00:43]} 57. Nxc5 {[%emt 0:00:00]} (57. Kh3 $142) 57... dxc5 $19 {[%emt 0:00:26]} 58. Bxc5+ {[%emt 0:00:00]} Kf7 {[%emt 0:00:22]} 59. d6 {[%emt 0:00:00]} Nc4 {[%emt 0:00:49]} 60. Nd3 {[%emt 0:00:00]} Bf6 {[%emt 0:00:49]} 61. Bb4 {[%emt 0:00:00]} Be5+ {[%emt 0:00:47]} 62. Nxe5+ {[%emt 0:00:00]} Nxe5 {[%emt 0:00:04]} 63. Kf4 {[%emt 0:00:00]} (63. Bd2 {was worth a try.}) 63... Ke6 {[%emt 0:00:11]} 64. Kg3 {[%emt 0:03:04]} Bd5 {[%emt 0:00:50]} 65. f4 {[%emt 0:01:30]} (65. Kf4 $142) 65... Nf7 {[%emt 0:00:19]} 66. d7 {[%emt 0:04:18]} Kxd7 {[%emt 0:00:36] Hoping for ...Ke6.} 67. Bf8 $2 {[%emt 0:00:09]} (67. Kh3) 67... Ke6 {[%emt 0:00:36]} 68. Kf2 {[%emt 0:00:44]} Kf5 {[%emt 0:00:17]} 69. g3 {[%emt 0:00:03]} Kg4 {[%emt 0:00:55]} 70. Bb4 {[%emt 0:00:42]} h5 {[%emt 0:00:42] ( -> ...Nh6)} 71. Be7 {[%emt 0:00:22]} Nh6 {[%emt 0:00:11]} 72. Bg5 {[%emt 0:01:53]} Nf5 {[%emt 0:00:09] Weighted Error Value: White=0.22 (precise) /Black=0.10 (very precise)} 0-1

[Event "German Championship Women 2022"]
[Site "Magdeburg"]
[Date "2022.08.18"]
[Round "6.3"]
[White "Voicu-Jagodzinsky, Carmen"]
[Black "Bazzazi, Elnaz"]
[Result "1-0"]
[ECO "A04"]
[WhiteElo "2258"]
[BlackElo "1766"]
[Annotator "TA"]
[PlyCount "75"]
[EventDate "2022.08.14"]
[EventType "swiss"]
[EventCountry "GER"]
[SourceTitle "playchess.com"]
[Source "ChessBase"]
[SourceQuality "1"]
[TimeControl "40/5400+30:1800+30"]

{[%evp 16,75,27,23,43,43,51,45,53,47,54,46,55,45,102,101,117,69,148,140,152,142,153,161,258,258,238,94,99,84,85,89,224,215,213,227,430,428,548,557,533,512,1264,543,722,402,711,451,1206,493,755,747,809,805,704,739,672,510,552,556,509,489]} 1. Nf3 {[%emt 0:00:03]} Nc6 {[%emt 0:00:13]} 2. d4 {[%emt 0:02:13]} d5 {[%emt 0:00:32]} 3. c4 {[%emt 0:01:08]} e6 {[%emt 0:00:25]} 4. Nc3 {[%emt 0:01:04]} Nf6 {[%emt 0:00:41]} 5. Bg5 {[%emt 0:03:04]} Be7 {[%emt 0:00:34]} 6. e3 {[%emt 0:00:37]} O-O {[%emt 0:01:19]} 7. Bd3 {[%emt 0:06:45]} h6 {[%emt 0:01:24]} 8. Bh4 {[%emt 0:03:42]} dxc4 {[%emt 0:04:06]} 9. Bxc4 {[%emt 0:00:12]} Na5 {[%emt 0:00:42] D53: Queen's Gambit Declined: 4 Bg5 Be7: Early deviations.} 10. Bd3 {[%emt 0:01:36]} c5 {[%emt 0:06:12] [#]} 11. dxc5 $146 {[%emt 0:01:36]} ({Predecessor:} 11. a3 c4 12. Bc2 Nd5 13. Bxe7 Qxe7 14. Qd2 b6 15. O-O Bb7 16. Nxd5 Bxd5 17. Qd1 {0-1 (34) Simonov,A-Sharikov,A Oberbernhards 2004}) 11... Bxc5 {[%emt 0:00:33] White is slightly better.} 12. O-O {[%emt 0:00:08]} Be7 {[%emt 0:00:52]} 13. Rc1 {[%emt 0:04:47]} Nc6 {[%emt 0:01:59]} 14. Qe2 {[%emt 0:06:06]} e5 {[%emt 0:09:25]} (14... Nh5 $14) 15. Rfd1 $16 {[%emt 0:04:08]} Qa5 {[%emt 0:07:54]} 16. Nd2 {[%emt 0:01:32]} ({White should play} 16. Bxf6 $16 Bxf6 17. Nd2) 16... Qb4 {[%emt 0:06:55]} (16... Bg4 $1 $14 17. f3 Be6) 17. Bxf6 {[%emt 0:15:43]} Bxf6 {[%emt 0:00:16]} 18. Nd5 {[%emt 0:00:14]} Qg4 {[%emt 0:00:40]} 19. f3 {[%emt 0:02:46]} Qh4 {[%emt 0:03:15]} (19... Qd7 $142) 20. Rc4 $18 {[%emt 0:01:33]} Qh5 {[%emt 0:02:34]} 21. Ne4 {[%emt 0:01:17]} (21. Nxf6+ $18 {is the precise move to win.} gxf6 22. Ne4) 21... Bd8 $16 {[%emt 0:00:52]} 22. Nd6 {[%emt 0:20:27] Pair of Knights!} Be6 {[%emt 0:04:52]} 23. Bc2 {[%emt 0:01:02] 0x0.001682b98841dp-1022s more active pieces. The black rooks are badly placed.} Nd4 {[%emt 0:13:42] This costs Black the game.} 24. exd4 $18 {[%emt 0:01:07] The board is on fire.} Bxd5 {[%emt 0:00:11]} 25. Rc5 $40 {[%emt 0:00:38][%mdl 128] White is out for blood.} (25. dxe5 Bxc4 26. Qe4 (26. Nxc4 Bc7 $15) 26... g6 $1 27. Nxc4 Bc7 $11) (25. Qxe5 Qxe5 26. dxe5 Bxc4 27. Nxc4 Bb6+ 28. Kf1 (28. Nxb6 axb6 29. Bb3 Rfd8 $17) 28... Rad8 $17) 25... exd4 $2 {[%emt 0:02:37]} (25... Bxa2 {was called for.} 26. Rxe5 (26. Qxe5 Qxe5 27. Rxe5 Bc7 $17) (26. Nxb7 Qh4 $16) 26... Qh4) 26. Qd3 {[%emt 0:02:56][%csl Gc2][%cal Rd3h7]} ({Not} 26. Qb5 Bb6 $1 27. Be4 (27. Rxd5 d3+ 28. Kh1 dxc2 $17) 27... d3 $11) 26... g6 {[%emt 0:03:22] Strongly threatening ...Bb6.} 27. Bb3 {[%emt 0:01:30]} ({Weaker is} 27. Qxd4 Bb6 28. b4 Bc6 $17) 27... Qe5 {[%emt 0:05:54]} 28. Rxd5 {[%emt 0:00:13]} Qe7 {[%emt 0:03:12] [#]} (28... Qe3+ $142 29. Kf1 Qxd3+ 30. Rxd3 Bb6) 29. g3 {[%emt 0:00:49]} (29. Nxf7 $142 $1 {[%cal Rd3g6][%mdl 512]} Qe3+ (29... Kh7 30. Ne5) 30. Qxe3 dxe3 31. Nxd8) 29... Bc7 {[%emt 0:01:22]} 30. Ne4 {[%emt 0:00:41][%cal Od5d7] Rd7! is the strong threat.} Bb6 {[%emt 0:03:22]} (30... Rad8 $142 31. Rb5 (31. Rxd4 $2 Rxd4 32. Qf1 Rxd1 $19) 31... b6) 31. Kg2 {[%emt 0:00:21][%cal Od5d7] And now Rd7! would win. White is clearly winning.} Rac8 {[%emt 0:00:22] [#]} (31... Rad8 $142 32. a4 a6) 32. h4 {[%emt 0:02:43]} (32. Rd7 $142 $3 {[%mdl 512]} Qe5 33. Nd6) 32... Rc7 {[%emt 0:01:39]} (32... Rfd8 $142 33. Rxd8+ Rxd8) 33. a4 {[%emt 0:00:22]} a6 {[%emt 0:00:55]} 34. Rd6 {[%emt 0:00:27] Intending Rxg6+ and mate.} Rc6 {[%emt 0:02:24]} 35. Rxc6 {[%emt 0:00:09]} bxc6 {[%emt 0:00:05]} 36. Qxa6 {[%emt 0:00:08]} Rb8 {[%emt 0:00:17]} 37. Qc4 {[%emt 0:01:00]} c5 {[%emt 0:00:46]} 38. Rd2 {[%emt 0:01:09] Weighted Error Value: White=0.66/Black=0.47} 1-0

[Event "German Championship Women 2022"]
[Site "Magdeburg"]
[Date "2022.08.18"]
[Round "6.4"]
[White "Kunze, Kerstin"]
[Black "Basovskiy, Jana"]
[Result "1-0"]
[ECO "A05"]
[WhiteElo "2020"]
[BlackElo "1867"]
[Annotator "TA"]
[PlyCount "79"]
[EventDate "2022.08.14"]
[EventType "swiss"]
[EventCountry "GER"]
[SourceTitle "playchess.com"]
[Source "ChessBase"]
[SourceQuality "1"]
[TimeControl "40/5400+30:1800+30"]

{[%evp 10,79,21,0,0,-14,-16,-9,-18,-55,-15,-55,-9,-62,-25,-73,-58,-61,-64,-79,-57,-77,-34,-67,-50,-51,-21,-28,-8,-15,0,-20,0,0,20,18,16,5,32,0,19,24,38,50,62,35,81,70,102,86,138,93,105,110,142,116,110,118,254,214,600,581,580,558,1226,1155,2281,2139,29996,29997,29997,-12]} 1. Nf3 Nf6 2. g3 d5 3. Bg2 Bf5 4. c4 c6 5. Qb3 Qb6 6. Nc3 e6 {A11: English Opening: 1...c6.} 7. Na4 Qxb3 8. axb3 {[%cal Oa4b6] [#] aiming for Nb6!} Nbd7 {Against Nb6. The position is equal.} 9. d4 Be7 10. O-O {[#]} O-O $146 (10... Bc2 $15 {was preferrable.}) ({Predecessor:} 10... Bc2 11. Nd2 O-O 12. Nc3 Rfd8 13. e4 dxe4 14. Ncxe4 Nxe4 15. Bxe4 Bxe4 16. Nxe4 Nf6 {½-½ (63) Rafales,B-Cantonjos,A (1959) San Antonio 2014}) 11. Nc3 ({Better is} 11. Bf4 $11) 11... h6 12. Nd2 (12. Ne1 $11 {might be stronger.}) 12... Rfd8 $17 13. Re1 a6 14. e3 Rac8 15. h3 Bg6 16. f4 Rb8 17. c5 Bh7 18. b4 Bg6 19. Kh2 Bh7 20. Bf3 Bg6 21. Rg1 h5 22. g4 hxg4 23. hxg4 Nf8 24. b3 Ra8 25. Bb2 Rab8 26. Rg2 N8d7 27. Rag1 Bf8 (27... Bd3 $14) 28. Kg3 Be7 29. Kf2 Bf8 (29... Bd3 $142) 30. g5 Nh7 31. e4 {[%cal Of4f5] White is more active.} Ra8 32. f5 exf5 33. exd5 {And now Nc4 would win.} cxd5 {This move loses the game for Black.} (33... a5 $16 {was called for.}) 34. Nxd5 $18 {Hoping for Nc4.} ({Much less strong is} 34. Bxd5 $6 a5 $16) 34... Rab8 $2 (34... a5 35. Nf4 axb4) 35. Nc4 Re8 36. Nf4 Kh8 37. Rh1 Be7 38. Nxg6+ fxg6 {[#]} 39. Rxh7+ $1 {[%mdl 512]} Kxh7 40. Rh2+ {[%mdl 32768] Weighted Error Value: White=0.16 (very precise) /Black=0.51. Loss on time!?} 1-0

[Event "German Championship Women 2022"]
[Site "Magdeburg"]
[Date "2022.08.18"]
[Round "6.5"]
[White "Braun, Kristin"]
[Black "Zhou, Lepu Coco"]
[Result "1-0"]
[ECO "C24"]
[WhiteElo "1897"]
[BlackElo "1986"]
[Annotator "TA"]
[PlyCount "97"]
[EventDate "2022.08.14"]
[EventType "swiss"]
[EventCountry "GER"]
[SourceTitle "playchess.com"]
[Source "ChessBase"]
[SourceQuality "1"]
[TimeControl "40/5400+30:1800+30"]

{[%evp 10,97,0,-16,-22,-23,-13,-13,-25,-32,-37,-71,-58,-52,-56,-75,-74,-83,-93,-83,-97,-86,-92,-110,-108,-129,-101,-297,-272,-291,-286,-262,-270,-263,-272,-265,-264,-304,-308,-396,-381,-444,0,0,972,977,975,977,971,959,975,915,908,855,5373,5385,4473,3763,1616,969,1117,1069,4528,3785,2159,1479,5285,1886,6116,2041,1876,1706,29969,29968,6697,2096,5904,822,793,677,657,657,934,927,1306,1233,1039,1007,845,792]} 1. e4 {[%emt 0:00:01]} e5 {[%emt 0:00:06]} 2. Bc4 {[%emt 0:00:45]} Nf6 {[%emt 0:00:07]} 3. d3 {[%emt 0:00:03]} c6 {[%emt 0:00:08]} 4. Nf3 {[%emt 0:00:08]} d5 {[%emt 0:00:14]} 5. exd5 {[%emt 0:00:48]} cxd5 {[%emt 0:00:11]} 6. Bb5+ {[%emt 0:02:40]} Bd7 $1 {[%emt 0:03:17] C24: Bishop's Opening: 2...Nf6.} 7. Bxd7+ {[%emt 0:00:33]} Nbxd7 {[%emt 0:00:08]} 8. O-O {[%emt 0:05:28][%cal Of3e5]} Bd6 {[%emt 0:03:54] The position is equal.} 9. Re1 {[%emt 0:06:39][%cal Of3e5]} O-O {[%emt 0:01:52]} 10. Nc3 {[%emt 0:07:29]} a6 {[%emt 0:07:46]} 11. Bg5 {[%emt 0:08:44]} Qc7 {[%emt 0:03:41]} (11... Qb6 {seems wilder.} 12. d4 exd4 13. Qxd4 Qxb2 14. Rab1 Qxc2 15. Nxd5 Bc5) 12. a3 {[%emt 0:09:14]} Rac8 {[%emt 0:04:43]} 13. Re2 {[%emt 0:15:54]} Rfe8 {[%emt 0:00:58]} 14. h3 {[%emt 0:02:15] [#]} h6 $146 {[%emt 0:05:50]} ({Predecessor:} 14... b5 15. Nb1 h6 16. Bh4 Nh5 17. c3 Qb6 18. Rd2 g5 19. Nxg5 hxg5 20. Qxh5 gxh4 {1-0 (47) Buchkov,N (1919)-Lazarenko,V (2035) Zhukovsky 2012}) 15. Bxf6 {[%emt 0:06:00]} Nxf6 {[%emt 0:00:07]} 16. Nh4 {[%emt 0:02:11]} Qd7 {[%emt 0:02:52]} 17. Qd2 {[%emt 0:01:34]} b5 {[%emt 0:05:51]} 18. b4 $2 {[%emt 0:05:25]} (18. Nf3) (18. Nf3 $17) 18... e4 {[%emt 0:01:59]} 19. dxe4 {[%emt 0:03:12]} Be5 {[%emt 0:05:31]} ({Not} 19... Nxe4 20. Nxe4 Rxe4 21. Nf3 $17) ({Worse is} 19... dxe4 20. Rd1 $17) 20. Nxd5 {[%emt 0:00:15]} Nxd5 {[%emt 0:00:09]} 21. Rd1 {[%emt 0:00:12]} Qd8 {[%emt 0:03:08]} 22. exd5 {[%emt 0:06:07][%cal Od5d6] Black must now prevent d6!} Qxh4 {[%emt 0:00:16]} 23. Rde1 {[%emt 0:03:16] [#]} Qf6 {[%emt 0:00:32]} 24. d6 {[%emt 0:00:48] [#] aiming for d7.} Rcd8 {[%emt 0:00:27]} 25. d7 {[%emt 0:04:56]} Re6 {[%emt 0:00:28]} ({Black should play} 25... Re7 $19 26. Rd1 Qc6) 26. Qd5 $36 {[%emt 0:02:01][%cal Re2e5][%mdl 2048] White is more active.} Bc7 {[%emt 0:03:36][%mdl 8192]} (26... Bd4 $11 27. Rxe6 fxe6 28. Rxe6 Qxf2+ 29. Kh2 Qf4+ 30. Kh1 Kf8) 27. Rxe6 $18 {[%emt 0:00:22]} fxe6 {[%emt 0:00:05]} 28. Rxe6 {[%emt 0:00:14]} Rxd7 {[%emt 0:00:39]} 29. Rd6+ $1 {[%emt 0:00:56]} Kh7 {[%emt 0:05:00]} 30. Qd3+ {[%emt 0:02:07]} Kh8 {[%emt 0:01:03]} 31. Rxd7 {[%emt 0:00:20][%mdl 4096] Endgame KQR-KQB} Qe5 {[%emt 0:00:15]} 32. g3 {[%emt 0:01:08]} Bb6 {[%emt 0:01:00]} 33. Rf7 {[%emt 0:02:36][%cal Rf7f8]} Kg8 {[%emt 0:02:36] Inhibits Rf8+.} 34. Rf5 {[%emt 0:00:44]} Qc7 {[%emt 0:00:42]} 35. Qf3 {[%emt 0:00:55] White wants to mate with Rf8+.} Qe7 {[%emt 0:01:32] Against Rf8+} 36. Qd5+ {[%emt 0:00:48]} Kh8 {[%emt 0:01:51]} 37. Rf7 {[%emt 0:00:45]} Qe8 {[%emt 0:01:01]} 38. Kg2 {[%emt 0:01:04]} Bd8 {[%emt 0:02:58]} 39. Rd7 {[%emt 0:00:33]} Bf6 {[%emt 0:00:13]} 40. Rd6 {[%emt 0:00:33]} Qe2 {[%emt 0:03:57]} 41. Re6 {[%emt 0:02:09]} Qxc2 {[%emt 0:03:11]} 42. Re8+ {[%emt 0:00:06] White is clearly winning.} Kh7 {[%emt 0:00:09]} 43. Qe4+ {[%emt 0:00:04]} (43. h4 $142 Bxh4 44. Re4) 43... Qxe4+ {[%emt 0:00:17]} 44. Rxe4 {[%emt 0:00:03] KR-KB} Bb2 {[%emt 0:00:09]} 45. Re3 {[%emt 0:00:23]} Bc1 {[%emt 0:00:57]} 46. Rd3 {[%emt 0:00:52]} Kg8 {[%emt 0:00:26]} 47. Kf3 {[%emt 0:00:16]} Kf7 {[%emt 0:00:14]} 48. Ke4 {[%emt 0:00:05]} Ke6 {[%emt 0:00:13]} 49. Rc3 {[%emt 0:00:05] What a bad dream for Black.  Weighted Error Value: White=0.25 (precise) /Black=0.43} 1-0

[Event "German Championship Women 2022"]
[Site "Magdeburg"]
[Date "2022.08.18"]
[Round "6.6"]
[White "Moenster, Madita"]
[Black "Peglau, Dora"]
[Result "1-0"]
[ECO "C16"]
[WhiteElo "1864"]
[BlackElo "1920"]
[Annotator "NA RC"]
[PlyCount "79"]
[EventDate "2022.08.14"]
[EventType "swiss"]
[EventCountry "GER"]
[SourceTitle "playchess.com"]
[Source "ChessBase"]
[SourceQuality "1"]
[TimeControl "40/5400+30:1800+30"]

1. e4 {[%emt 0:00:03]} e6 {[%emt 0:00:18]} 2. d4 {[%emt 0:00:08]} d5 {[%emt 0:00:05]} 3. Nc3 {[%emt 0:00:07]} Bb4 {[%emt 0:00:21]} 4. e5 {[%emt 0:00:15]} Ne7 {[%emt 0:00:12]} 5. a3 {[%emt 0:02:20]} Ba5 {[%emt 0:00:23]} 6. b4 {[%emt 0:03:43]} Bb6 {[%emt 0:00:05]} 7. Qg4 {[%emt 0:01:22]} h5 {[%emt 0:01:04]} 8. Qf4 {[%emt 0:02:05]} a5 {[%emt 0:16:13]} 9. Rb1 {[%emt 0:08:21]} axb4 {[%emt 0:02:06]} 10. axb4 {[%emt 0:00:08]} Nf5 {[%emt 0:04:31]} 11. Nf3 {[%emt 0:02:00]} Nc6 $1 {[%emt 0:02:37]} 12. Bb5 {[%emt 0:06:46]} Bd7 {[%emt 0:03:30]} 13. Be3 {[%emt 0:07:17] [#]} Nxb4 $1 {[%emt 0:06:40]} 14. Rxb4 {[%emt 0:09:24]} Ba5 {[%emt 0:00:52] Skewer} 15. Bxd7+ {[%emt 0:01:00]} Qxd7 {[%emt 0:01:29]} 16. Rb1 {[%emt 0:06:59]} Bxc3+ {[%emt 0:00:13]} 17. Bd2 {[%emt 0:00:09]} Bxd2+ {[%emt 0:01:01]} 18. Qxd2 {[%emt 0:00:08]} O-O {[%emt 0:05:40]} 19. O-O {[%emt 0:01:06]} Ra2 {[%emt 0:01:21]} 20. Qg5 {[%emt 0:03:46]} g6 {[%emt 0:07:22]} 21. h3 $17 {[%emt 0:02:45]} Qe7 {[%emt 0:03:10]} 22. Qf4 {[%emt 0:01:09]} Kg7 {[%emt 0:09:54]} 23. Rxb7 {[%emt 0:08:12]} Rxc2 {[%emt 0:03:05]} 24. Rfb1 {[%emt 0:02:14]} Ra8 {[%emt 0:04:26]} 25. g4 {[%emt 0:07:17]} hxg4 {[%emt 0:00:20]} 26. hxg4 {[%emt 0:00:05]} Nh4 {[%emt 0:01:27]} 27. Qf6+ {[%emt 0:05:21]} Qxf6 {[%emt 0:01:23]} 28. exf6+ {[%emt 0:00:06]} Kxf6 {[%emt 0:00:09]} 29. Nxh4 {[%emt 0:00:09]} Raa2 {[%emt 0:01:02]} 30. Rf1 {[%emt 0:01:42]} e5 {[%emt 0:03:23]} 31. Rb4 {[%emt 0:03:01]} e4 {[%emt 0:00:56]} 32. Ng2 {[%emt 0:00:49]} c6 {[%emt 0:06:27]} 33. Ne3 {[%emt 0:03:14]} Rc3 {[%emt 0:01:42]} 34. Rfb1 {[%emt 0:03:27]} Ke6 {[%emt 0:03:22]} 35. Rb7 {[%emt 0:05:12]} f5 {[%emt 0:01:28]} 36. gxf5+ {[%emt 0:00:52]} gxf5 {[%emt 0:00:04]} 37. Rh7 {[%emt 0:00:37]} Kf6 {[%emt 0:02:15]} 38. Rbb7 {[%emt 0:01:53]} Kg5 {[%emt 0:01:22]} 39. Rbg7+ {[%emt 0:01:07]} Kf4 {[%emt 0:02:34]} 40. Kg2 {[%emt 0:01:30]} 1-0